fUSD/lending_fUSD_20240115
["ID","MTS","AMOUNT","RATE_DAILY","PERIOD"]
[311695106,1705336295008,-872.91,0.00033424,4]
[311695107,1705336295018,-504.03993022,0.00033424,4]
[311695108,1705336295027,-1342.16,0.00033424,4]
[311695109,1705336295037,-500.0,0.00033424,4]
[311695110,1705336295047,-1683.36,0.00033424,4]
[311695111,1705336295057,-500.0,0.00033424,4]
[311695112,1705336295067,-500.0,0.00033424,4]
[311695113,1705336295076,-528.39103815,0.00033424,4]
[311695114,1705336295086,-500.0,0.00033424,4]
[311695115,1705336295095,-500.0,0.00033424,4]
[311695116,1705336295105,-503.13769264,0.00033424,4]
[311695117,1705336295115,-1014.09,0.00033424,4]
[311695118,1705336295124,-500.0,0.00033424,4]
[311695119,1705336295134,-510.93590798,0.00033424,4]
[311695120,1705336295144,-1155.47,0.00033424,4]
[311695121,1705336295153,-2093.7,0.00033424,4]
[311695122,1705336295163,-510.16890176,0.00033424,4]
[311695123,1705336295173,-500.0,0.00033424,4]
[311695124,1705336295182,-500.0,0.00033424,4]
[311695125,1705336295192,-839.65,0.00033424,4]
[311695126,1705336295202,-500.0,0.00033424,4]
[311695127,1705336295212,-503.9690116,0.00033424,4]
[311695128,1705336295222,-4195.4,0.00033424,4]
[311695129,1705336295232,-1854.6,0.00033424,4]
[311695130,1705336295243,-500.0,0.00033424,4]
[311695131,1705336295252,-500.0,0.00033424,4]
[311695132,1705336295263,-4270.33,0.00033424,4]
[311695133,1705336295273,-500.0,0.00033424,4]
[311695134,1705336295283,-500.0,0.00033424,4]
[311695135,1705336295294,-5274.11,0.00033424,4]
[311695136,1705336295303,-500.0,0.00033424,4]
[311695137,1705336295313,-507.73308115,0.00033424,4]
[311695138,1705336295322,-500.0,0.00033424,4]
[311695139,1705336295332,-1305.78,0.00033424,4]
[311695140,1705336295342,-500.0,0.00033424,4]
[311695141,1705336295352,-500.0,0.00033424,4]
[311695142,1705336295362,-1299.47,0.00033424,4]
[311695143,1705336295371,-500.0,0.00033424,4]
[311695144,1705336295381,-506.68455869,0.00033424,4]
[311695145,1705336295390,-500.0,0.00033424,4]
[311695146,1705336295400,-1229.49,0.00033424,4]
[311695147,1705336295410,-1694.24,0.00033424,4]
[311695148,1705336295420,-500.0,0.00033424,4]
[311695149,1705336295430,-769.54,0.00033424,4]
[311695150,1705336295440,-242.79292776,0.00033424,4]
[311695151,1705336295450,-855.71,0.00033424,4]
[311695152,1705336295459,-954.9,0.00033424,4]
[311695153,1705336295469,-2725.15,0.00033424,4]
[311695154,1705336295480,-1532.14,0.00033424,4]
[311695155,1705336295491,-1012.81,0.00033424,4]
[311695156,1705336295501,-500.0,0.00033424,4]
[311695157,1705336295511,-2198.47,0.00033424,4]
[311695158,1705336295522,-672.7,0.00033424,4]
[311695159,1705336295532,-308.37809038,0.00033424,4]
[311695160,1705336295543,-719.93,0.00033424,4]
[311695161,1705336295553,-1149.24,0.00033424,4]
[311695162,1705336295564,-500.0,0.00033424,4]
[311695163,1705336295578,-500.0,0.00033424,4]
[311695164,1705336295589,-500.0,0.00033424,4]
[311695165,1705336295600,-1047.98,0.00033424,4]
[311695166,1705336295610,-1786.55,0.00033424,4]
[311695167,1705336295620,-500.0,0.00033424,4]
[311695168,1705336295631,-500.0,0.00033424,4]
[311695169,1705336295641,-500.0,0.00033424,4]
[311695170,1705336295651,-500.0,0.00033424,4]
[311695171,1705336295661,-948.85,0.00033424,4]
[311695172,1705336295670,-500.0,0.00033424,4]
[311695173,1705336295680,-500.0,0.00033424,2]
[311695174,1705336295690,-500.0,0.00033424,4]
[311695175,1705336295700,-500.0,0.00033424,4]
[311695176,1705336295710,-2646.75,0.00033424,4]
[311695177,1705336295720,-5543.93,0.00033424,4]
[311695178,1705336295730,-1312.56,0.00033424,4]
[311695179,1705336295741,-500.0,0.00033424,4]
[311695180,1705336295751,-2074.03,0.00033424,4]
[311695181,1705336295760,-500.0,0.00033424,4]
[311695182,1705336295770,-696.74,0.00033424,4]
[311695183,1705336295779,-500.0,0.00033424,4]
[311695184,1705336295789,-3104.42,0.00033424,4]
[311695185,1705336295799,-1094.78,0.00033424,4]
[311695186,1705336295809,-1092.94,0.00033424,4]
[311695187,1705336295819,-500.0,0.00033424,4]
[311695188,1705336295828,-500.0,0.00033424,4]
[311695189,1705336295838,-2264.13,0.00033424,4]
[311695190,1705336295849,-500.0,0.00033424,4]
[311695191,1705336295858,-2717.1,0.00033424,4]
[311695192,1705336295868,-500.0,0.00033424,4]
[311695193,1705336295878,-8863.98,0.00033424,4]
[311695194,1705336295888,-1039.11,0.00033424,4]
[311695195,1705336295898,-946.63,0.00033424,4]
[311695196,1705336295908,-500.0,0.00033424,4]
[311695197,1705336295918,-505.952318,0.00033424,4]
[311695198,1705336295928,-500.0,0.00033424,4]
[311695199,1705336295938,-500.0,0.00033424,4]
[311695200,1705336296198,-500.0,0.00033424,4]
[311695201,1705336296209,-693.84,0.00033424,4]
[311695202,1705336296219,-500.0,0.00033424,4]
[311695203,1705336296229,-500.0,0.00033424,4]
[311695204,1705336296238,-1069.36,0.00033424,4]
[311695205,1705336296248,-500.0,0.00033424,4]
[311695206,1705336296257,-951.49,0.00033424,4]
[311695207,1705336296267,-674.79,0.00033424,4]
[311695208,1705336296276,-500.0,0.00033424,4]
[311695209,1705336296286,-6079.2,0.00033424,4]
[311695210,1705336296296,-500.0,0.00033424,4]
[311695211,1705336296307,-1623.93,0.00033424,4]
[311695212,1705336296316,-500.0,0.00033424,4]
[311695213,1705336296325,-965.33,0.00033424,4]
[311695214,1705336296335,-500.0,0.00033424,4]
[311695215,1705336296344,-500.0,0.00033424,4]
[311695216,1705336296353,-555.29,0.00033424,4]
[311695217,1705336296363,-1581.11,0.00033424,4]
[311695218,1705336296373,-500.0,0.00033424,4]
[311695219,1705336296383,-4998.69,0.00033424,4]
[311695220,1705336296392,-4924.51,0.00033424,4]
[311695221,1705336296402,-890.99,0.00033424,4]
[311695222,1705336296412,-766.14,0.00033424,4]
[311695223,1705336296422,-3084.98,0.00033424,4]
[311695224,1705336296431,-796.52,0.00033424,4]
[311695225,1705336296441,-500.0,0.00033424,4]
[311695226,1705336296451,-626.2,0.00033424,4]
[311695227,1705336296461,-2344.2,0.00033424,4]
[311695228,1705336296471,-536.27,0.00033424,4]
[311695229,1705336296480,-21566.78,0.00033424,4]
[311695230,1705336296490,-3610.16,0.00033424,4]
[311695231,1705336296500,-500.0,0.00033424,4]
[311695232,1705336296510,-500.0,0.00033424,4]
[311695233,1705336296520,-1028.49,0.00033424,4]
[311695234,1705336296530,-500.0,0.00033424,4]
[311695235,1705336296540,-1983.52,0.00033424,4]
[311695236,1705336296551,-234.23908884,0.00033424,4]
[311695237,1705336296562,-500.0,0.00033424,4]
[311695238,1705336296572,-621.43,0.00033424,4]
[311695239,1705336296581,-528.22,0.00033424,4]
[311695240,1705336296591,-865.24,0.00033424,4]
[311695241,1705336296602,-1830.92,0.00033424,4]
[311695242,1705336296611,-1119.11,0.00033424,4]
[311695243,1705336296621,-500.0,0.00033424,4]
[311695244,1705336296631,-790.25,0.00033424,4]
[311695245,1705336296641,-500.0,0.00033424,4]
[311695246,1705336296651,-1976.81,0.00033424,4]
[311695247,1705336296661,-500.0,0.00033424,4]
[311695248,1705336296671,-1123.02,0.00033424,4]
[311695249,1705336296681,-3144.37,0.00033424,4]
[311695250,1705336296690,-1797.3,0.00033424,4]
[311695251,1705336296700,-1005.06,0.00033424,4]
[311695252,1705336296710,-500.0,0.00033424,4]
[311695253,1705336296722,-497.52043849,0.00033424,4]
[311695254,1705336296732,-1407.81,0.00033424,4]
[311695255,1705336296741,-811.49,0.00033424,4]
[311695256,1705336296751,-946.48,0.00033424,4]
[311695257,1705336296763,-500.0,0.00033424,4]
[311695258,1705336296774,-1126.56,0.00033424,4]
[311695259,1705336296784,-500.0,0.00033424,4]
[311695260,1705336296793,-508.9802071,0.00033424,4]
[311695261,1705336296804,-500.0,0.00033424,4]
[311695262,1705336296814,-1605.83,0.00033424,4]
[311695263,1705336296824,-593.98,0.00033424,4]
[311695264,1705336296833,-500.0,0.00033424,4]
[311695265,1705336296843,-970.95,0.00033424,4]
[311695266,1705336296852,-20000.0,0.00033424,3]
[311695267,1705336296862,-500.0,0.00033424,4]
[311695268,1705336296871,-990.2,0.00033424,4]
[311695269,1705336296881,-4509.15,0.00033424,4]
[311695270,1705336296891,-500.0,0.00033424,3]
[311695271,1705336296901,-2329.6,0.00033424,4]
[311695272,1705336296910,-1066.91,0.00033424,4]
[311695273,1705336296920,-500.0,0.00033424,4]
[311695274,1705336296929,-7086.54,0.00033424,4]
[311695275,1705336296939,-500.0,0.00033424,4]
[311695276,1705336296949,-506.76938316,0.00033424,4]
[311695277,1705336296960,-1891.98,0.00033424,4]
[311695278,1705336296969,-751.27,0.00033424,4]
[311695279,1705336296979,-500.0,0.00033424,4]
[311695280,1705336296989,-500.0,0.00033424,4]
[311695281,1705336296999,-1875.33,0.00033424,4]
[311695282,1705336297009,-2134.88,0.00033424,4]
[311695283,1705336297019,-749.99,0.00033424,4]
[311695284,1705336297029,-2210.75,0.00033424,4]
[311695285,1705336297039,-643.93,0.00033424,4]
[311695286,1705336297050,-500.0,0.00033424,4]
[311695287,1705336297059,-500.0,0.00033424,4]
[311695288,1705336297069,-5016.39,0.00033424,4]
[311695289,1705336297078,-500.0,0.00033424,4]
[311695290,1705336297088,-2198.01,0.00033424,4]
[311695291,1705336297098,-500.0,0.00033424,4]
[311695292,1705336297107,-500.0,0.00033424,4]
[311695293,1705336297116,-500.0,0.00033424,4]
[311695294,1705336297126,-1458.64,0.00033424,4]
[311695295,1705336297135,-617.4,0.00033424,4]
[311695296,1705336297145,-500.0,0.00033424,4]
[311695297,1705336297154,-500.0,0.00033424,4]
[311695298,1705336297164,-500.0,0.00033424,4]
[311695299,1705336297173,-2884.82,0.00033424,4]
[311695300,1705336297182,-500.0,0.00033424,4]
[311695301,1705336297191,-500.0,0.00033424,4]
[311695302,1705336297200,-2229.18,0.00033424,4]
[311695303,1705336297209,-834.0,0.00033424,4]
[311695304,1705336297218,-1128.77,0.00033424,4]
[311695305,1705336297227,-500.0,0.00033424,4]
[311695306,1705336297236,-1062.71,0.00033424,4]
[311695307,1705336297246,-500.0,0.00033424,4]
[311695308,1705336297256,-1730.49,0.00033424,4]
[311695309,1705336297265,-288.14474407,0.00033424,4]
[311695310,1705336297275,-2370.36,0.00033424,4]
[311695311,1705336297284,-1138.7,0.00033424,4]
[311695312,1705336297293,-500.0,0.00033424,4]
[311695313,1705336297303,-546.98,0.00033424,4]
[311695314,1705336297313,-524.66,0.00033424,4]
[311695315,1705336297323,-3932.03,0.00033424,4]
[311695316,1705336297332,-910.7,0.00033424,4]
[311695317,1705336297341,-575.25,0.00033424,4]
[311695318,1705336297351,-1336.8,0.00033424,4]
[311695319,1705336297360,-1438.97,0.00033424,4]
[311695320,1705336297369,-6317.28,0.00033424,4]
[311695321,1705336297379,-2307.43,0.00033424,4]
[311695322,1705336297388,-1784.06,0.00033424,4]
[311695323,1705336297397,-622.73574084,0.00033424,4]
[311695324,1705336297406,-500.0,0.00033424,4]
[311695325,1705336297417,-1046.59,0.00033424,4]
[311695326,1705336297426,-500.0,0.00033424,4]
[311695327,1705336297436,-1366.55,0.00033424,4]
[311695328,1705336297445,-718.17,0.00033424,4]
[311695329,1705336297455,-851.16,0.00033424,4]
[311695330,1705336297464,-500.0,0.00033424,4]
[311695331,1705336297474,-3844.9,0.00033424,4]
[311695332,1705336297483,-500.0,0.00033424,4]
[311695333,1705336297493,-1533.39,0.00033424,4]
[311695334,1705336297503,-500.0,0.00033424,4]
[311695335,1705336297512,-500.0,0.00033424,4]
[311695336,1705336297521,-500.0,0.00033424,4]
[311695337,1705336297532,-500.0,0.00033424,4]
[311695338,1705336297541,-500.0,0.00033424,4]
[311695339,1705336297552,-500.0,0.00033424,4]
[311695340,1705336297561,-500.0,0.00033424,4]
[311695341,1705336297571,-3646.6,0.00033424,4]
[311695342,1705336297580,-500.0,0.00033424,4]
[311695343,1705336297590,-500.0,0.00033424,4]
[311695344,1705336297599,-2446.2,0.00033424,4]
[311695345,1705336297609,-580.83,0.00033424,4]
[311695346,1705336297618,-743.19,0.00033424,4]
[311695347,1705336297627,-1066.42,0.00033424,4]
[311695348,1705336297637,-733.47,0.00033424,4]
[311695349,1705336297647,-755.14,0.00033424,4]
[311695350,1705336297656,-2548.19,0.00033424,4]
[311695351,1705336297666,-1578.18,0.00033424,4]
[311695352,1705336297675,-1326.38,0.00033424,4]
[311695353,1705336297685,-500.0,0.00033424,4]
[311695354,1705336297694,-500.0,0.00033424,4]
[311695355,1705336297703,-500.0,0.00033424,4]
[311695356,1705336297713,-675.76,0.00033424,4]
[311695357,1705336297722,-1149.7,0.00033424,4]
[311695358,1705336297731,-500.0,0.00033424,4]
[311695359,1705336297740,-611.54,0.00033424,4]
[311695360,1705336297750,-500.0,0.00033424,4]
[311695361,1705336297759,-500.0,0.00033424,4]
[311695362,1705336297769,-500.0,0.00033424,4]
[311695363,1705336297779,-500.0,0.00033424,4]
[311695364,1705336297788,-500.0,0.00033424,4]
[311695365,1705336297798,-1185.57,0.00033424,4]
[311695366,1705336297808,-1604.0,0.00033424,4]
[311695367,1705336297818,-1572.95,0.00033424,4]
[311695368,1705336297828,-500.0,0.00033424,4]
[311695369,1705336297838,-5948.28,0.00033424,4]
[311695370,1705336297848,-1178.78,0.00033424,4]
[311695371,1705336297857,-1155.2,0.00033424,4]
[311695372,1705336297867,-2360.21,0.00033424,4]
[311695373,1705336297877,-2944.89,0.00033424,4]
[311695374,1705336297886,-500.0,0.00033424,4]
[311695375,1705336297896,-500.0,0.00033424,4]
[311695376,1705336297905,-4544.54,0.00033424,4]
[311695377,1705336297914,-1536.99,0.00033424,4]
[311695378,1705336297923,-887.23,0.00033424,4]
[311695379,1705336297933,-500.0,0.00033424,4]
[311695380,1705336297942,-1418.11,0.00033424,4]
[311695381,1705336297951,-500.0,0.00033424,4]
[311695382,1705336297961,-830.13,0.00033424,4]
[311695383,1705336297970,-500.0,0.00033424,4]
[311695384,1705336297979,-500.0,0.00033424,4]
[311695385,1705336297988,-2067.56,0.00033424,4]
[311695386,1705336297997,-510.57,0.00033424,4]
[311695387,1705336298007,-500.0,0.00033424,4]
[311695388,1705336298016,-1235.79,0.00033424,4]
[311695389,1705336298026,-1605.48,0.00033424,4]
[311695390,1705336298035,-500.0,0.00033424,4]
[311695391,1705336298045,-500.0,0.00033424,4]
[311695392,1705336298055,-500.0,0.00033424,4]
[311695393,1705336298065,-500.0,0.00033424,4]
[311695394,1705336298105,-845.04371435,0.00033477,7]
[311695395,1705336298115,-157.46077969,0.00033478,7]
[311695396,1705336298124,-150.10483007,0.00033498,2]
[311695397,1705336298133,-5000.0,0.000335,15]
[311695398,1705336298143,-400000.0,0.000335,4]
[311695399,1705336298153,-550.0,0.000335,22]
[311695400,1705336298162,-2383.19,0.000335,2]
[311695401,1705336298171,-2383.19,0.000335,2]
[311695402,1705336298181,-2383.19,0.000335,2]
[311695403,1705336298191,-2383.19,0.000335,2]
[311695404,1705336298201,-2383.19,0.000335,2]
[311695405,1705336298210,-2383.19,0.000335,2]
[311695406,1705336298219,-2383.19,0.000335,2]
[311695407,1705336298229,-2383.19,0.000335,2]
[311695408,1705336298238,-2383.19,0.000335,2]
[311695409,1705336298248,-2383.19,0.000335,2]
[311695410,1705336298258,-2383.19,0.000335,2]
[311695411,1705336298267,-2383.19,0.000335,2]
[311695412,1705336298277,-2383.19,0.000335,2]
[311695413,1705336298286,-2383.19,0.000335,2]
[311695414,1705336298295,-2383.19,0.000335,2]
[311695415,1705336298305,-2383.19,0.000335,2]
[311695416,1705336298314,-2383.19,0.000335,2]
[311695417,1705336298323,-2383.19,0.000335,2]
[311695418,1705336298332,-2383.19,0.000335,2]
[311695419,1705336298341,-2383.19,0.000335,2]
[311695420,1705336298351,-300.0,0.000335,3]
[311695421,1705336298359,-163.33117129,0.00033504,7]
[311695422,1705336298369,-409.61,0.00033516,2]
[311695423,1705336298379,-286.65578696,0.00033536,7]
[311695424,1705336298389,-367.30400215,0.00033542,7]
[311695425,1705336298399,-1103.18869887,0.00033547,7]
[311695426,1705336298408,-500.0,0.00033567,6]
[311695427,1705336298417,-500.0,0.00033567,6]
[311695428,1705336298426,-500.0,0.00033567,6]
[311695429,1705336298435,-500.0,0.00033567,6]
[311695430,1705336298444,-500.0,0.00033567,6]
[311695431,1705336298453,-162.54209167,0.00033571,7]
[311695432,1705336298462,-367.30400215,0.00033606,7]
[311695433,1705336298472,-156.43690265,0.00033609,7]
[311695434,1705336298482,-153.12319756,0.00033617,7]
[311695435,1705336298491,-163.33117129,0.00033638,7]
[311695436,1705336298500,-163.33117129,0.00033645,7]
[311695437,1705336298509,-164.74477195,0.00033651,7]
[311695438,1705336298519,-286.65578696,0.00033666,7]
[311695439,1705336298529,-286.65578696,0.00033675,7]
[311695440,1705336298539,-1103.18869887,0.00033685,7]
[311695441,1705336298549,-500.0,0.00033698,4]
[311695442,1705336298558,-1005.03,0.00033698,4]
[311695443,1705336298567,-3947.23,0.00033698,4]
[311695444,1705336298577,-1541.94,0.00033698,4]
[311695445,1705336298587,-2029.28,0.00033698,4]
[311695446,1705336298597,-505.60454851,0.00033698,4]
[311695447,1705336298606,-622.97063679,0.00033698,4]
[311695448,1705336298616,-500.0,0.00033698,4]
[311695449,1705336298625,-500.0,0.00033698,4]
[311695450,1705336298635,-507.58685177,0.00033698,4]
[311695451,1705336298644,-500.0,0.00033698,4]
[311695452,1705336298744,-500.0,0.00033698,4]
[311695453,1705336298754,-500.0,0.00033698,4]
[311695454,1705336298764,-500.0,0.00033698,4]
[311695455,1705336298773,-500.0,0.00033698,4]
[311695456,1705336298782,-500.0,0.00033698,4]
[311695457,1705336298792,-500.0,0.00033698,4]
[311695458,1705336298803,-500.0,0.00033698,4]
[311695459,1705336298812,-500.0,0.00033698,4]
[311695460,1705336298821,-500.0,0.00033698,4]
[311695461,1705336298831,-286.38894163,0.00033698,4]
[311695462,1705336298841,-500.0,0.00033698,4]
[311695463,1705336298850,-500.0,0.00033698,4]
[311695464,1705336298859,-946.21,0.00033698,4]
[311695465,1705336298868,-500.0,0.00033698,4]
[311695466,1705336298881,-659.8,0.00033698,4]
[311695467,1705336298891,-556.75,0.00033698,4]
[311695468,1705336298900,-500.0,0.00033698,4]
[311695469,1705336298909,-424.10754247,0.00033698,4]
[311695470,1705336298918,-639.27,0.00033698,4]
[311695471,1705336298927,-500.0,0.00033698,4]
[311695472,1705336298936,-500.0,0.00033698,4]
[311695473,1705336298947,-500.0,0.00033698,4]
[311695474,1705336298956,-500.0,0.00033698,4]
[311695475,1705336298966,-500.0,0.00033698,4]
[311695476,1705336298974,-707.09,0.00033698,4]
[311695477,1705336298984,-500.0,0.00033698,4]
[311695478,1705336298993,-502.09317353,0.00033698,4]
[311695479,1705336299002,-793.61,0.00033698,4]
[311695480,1705336299011,-633.61,0.00033698,4]
[311695481,1705336299020,-500.0,0.00033698,4]
[311695482,1705336299030,-538.67,0.00033698,4]
[311695483,1705336299039,-500.0,0.00033698,4]
[311695484,1705336299048,-506.22831247,0.00033698,4]
[311695485,1705336299057,-500.0,0.00033698,4]
[311695486,1705336299066,-179.31726633,0.00033698,4]
[311695487,1705336299076,-625.45,0.00033698,4]
[311695488,1705336299085,-500.0,0.00033698,4]
[311695489,1705336299094,-515.0196933,0.00033698,4]
[311695490,1705336299103,-500.0,0.00033698,4]
[311695491,1705336299112,-500.0,0.00033698,4]
[311695492,1705336299121,-500.0,0.00033698,4]
[311695493,1705336299131,-504.41,0.00033698,4]
[311695494,1705336299140,-500.0,0.00033698,4]
[311695495,1705336299149,-500.0,0.00033698,4]
[311695496,1705336299159,-590.57,0.00033698,4]
[311695497,1705336299167,-500.0,0.00033698,4]
[311695498,1705336299177,-500.0,0.00033698,4]
[311695499,1705336299186,-504.99,0.00033698,4]
[311695500,1705336299195,-631.31,0.00033698,4]
[311695501,1705336299204,-500.0,0.00033698,4]
[311695502,1705336299214,-943.26,0.00033698,4]
[311695503,1705336299223,-534.45,0.00033698,4]
[311695504,1705336299232,-500.0,0.00033698,4]
[311695505,1705336299241,-500.0,0.00033698,4]
[311695506,1705336299251,-500.0,0.00033698,4]
[311695507,1705336299260,-500.0,0.00033698,4]
[311695508,1705336299269,-500.0,0.00033698,4]
[311695509,1705336299278,-500.0,0.00033698,4]
[311695510,1705336299287,-518.55,0.00033698,4]
[311695511,1705336299296,-500.0,0.00033698,4]
[311695512,1705336299306,-817.32,0.00033698,4]
[311695513,1705336299315,-503.98,0.00033698,4]
[311695514,1705336299324,-500.0,0.00033698,4]
[311695515,1705336299332,-500.0,0.00033698,4]
[311695516,1705336299341,-707.82,0.00033698,4]
[311695517,1705336299350,-500.0,0.00033698,4]
[311695518,1705336299359,-500.0,0.00033698,4]
[311695519,1705336299368,-500.0,0.00033698,4]
[311695520,1705336299378,-500.0,0.00033698,4]
[311695521,1705336299388,-500.0,0.00033698,4]
[311695522,1705336299398,-578.69,0.00033698,4]
[311695523,1705336299407,-500.0,0.00033698,4]
[311695524,1705336299418,-518.74995587,0.00033698,4]
[311695525,1705336299428,-500.0,0.00033698,4]
[311695526,1705336299437,-568.99056031,0.00033698,4]
[311695527,1705336299447,-500.0,0.00033698,4]
[311695528,1705336299457,-500.0,0.00033698,4]
[311695529,1705336299466,-400.02665441,0.00033698,4]
[311695530,1705336299476,-525.86701656,0.00033698,20]
[311695531,1705336299485,-634.98,0.00033698,4]
[311695532,1705336299495,-500.0,0.00033698,4]
[311695533,1705336299505,-521.1389415,0.00033698,4]
[311695534,1705336299515,-500.0,0.00033698,4]
[311695535,1705336299524,-500.0,0.00033698,4]
[311695536,1705336299534,-500.0,0.00033698,4]
[311695537,1705336299543,-500.0,0.00033698,4]
[311695538,1705336299553,-500.0,0.00033698,4]
[311695539,1705336299563,-359.52657917,0.00033698,4]
[311695540,1705336299572,-686.23,0.00033698,4]
[311695541,1705336299581,-500.0,0.00033698,4]
[311695542,1705336299591,-500.0,0.00033698,4]
[311695543,1705336299601,-500.0,0.00033698,4]
[311695544,1705336299610,-500.0,0.00033698,4]
[311695545,1705336299620,-500.0,0.00033698,4]
[311695546,1705336299629,-500.0,0.00033698,4]
[311695547,1705336299638,-500.0,0.00033698,4]
[311695548,1705336299648,-505.67979554,0.00033698,4]
[311695549,1705336299657,-321.00117087,0.00033698,4]
[311695550,1705336299667,-900.67,0.00033698,4]
[311695551,1705336299676,-500.0,0.00033698,4]
[311695552,1705336299686,-504.47593474,0.00033698,4]
[311695553,1705336299696,-500.0,0.00033698,4]
[311695554,1705336299706,-250.0,0.00033698,4]
[311695555,1705336299715,-500.0,0.00033698,4]
[311695556,1705336299724,-500.0,0.00033698,4]
[311695557,1705336299735,-500.0,0.00033698,4]
[311695558,1705336299745,-500.0,0.00033698,4]
[311695559,1705336299755,-281.16872078,0.00033698,4]
[311695560,1705336299764,-557.15,0.00033698,4]
[311695561,1705336299773,-500.0,0.00033698,4]
[311695562,1705336299783,-500.0,0.00033698,4]
[311695563,1705336299792,-500.0,0.00033698,4]
[311695564,1705336299802,-500.0,0.00033698,4]
[311695565,1705336299812,-500.0,0.00033698,4]
[311695566,1705336299822,-500.0,0.00033698,4]
[311695567,1705336299831,-500.0,0.00033698,4]
[311695568,1705336299840,-500.0,0.00033698,4]
[311695569,1705336299850,-411.96933597,0.00033698,4]
[311695570,1705336299859,-500.0,0.00033698,4]
[311695571,1705336299868,-625.16,0.00033698,4]
[311695572,1705336299877,-500.0,0.00033698,15]
[311695573,1705336299886,-500.0,0.00033698,4]
[311695574,1705336299896,-500.0,0.00033698,4]
[311695575,1705336299905,-500.0,0.00033698,4]
[311695576,1705336299915,-500.0,0.00033698,4]
[311695577,1705336299925,-500.0,0.00033698,4]
[311695578,1705336299935,-500.0,0.00033698,4]
[311695579,1705336299945,-500.0,0.00033698,4]
[311695580,1705336299956,-513.23511735,0.00033698,4]
[311695581,1705336299965,-706.86,0.00033698,4]
[311695582,1705336299974,-500.0,0.00033698,4]
[311695583,1705336299984,-923.69,0.00033698,4]
[311695584,1705336299993,-277.25412867,0.00033698,4]
[311695585,1705336300003,-500.0,0.00033698,4]
[311695586,1705336300013,-500.0,0.00033698,4]
[311695587,1705336300023,-500.0,0.00033698,4]
[311695588,1705336300032,-500.0,0.00033698,4]
[311695589,1705336300041,-500.0,0.00033698,4]
[311695590,1705336300051,-500.0,0.00033698,4]
[311695591,1705336300060,-500.0,0.00033698,4]
[311695592,1705336300069,-500.0,0.00033698,4]
[311695593,1705336300079,-500.0,0.00033698,4]
[311695594,1705336300088,-500.0,0.00033698,4]
[311695595,1705336300098,-500.0,0.00033698,4]
[311695596,1705336300107,-649.21,0.00033698,4]
[311695597,1705336300116,-504.32493426,0.00033698,4]
[311695598,1705336300126,-648.12,0.00033698,4]
[311695599,1705336300135,-500.0,0.00033698,4]
[311695600,1705336300145,-500.0,0.00033698,4]
[311695601,1705336300154,-187.48558605,0.00033698,4]
[311695602,1705336300163,-500.0,0.00033698,4]
[311695603,1705336300172,-500.0,0.00033698,4]
[311695604,1705336300181,-500.0,0.00033698,4]
[311695605,1705336300191,-503.88,0.00033698,4]